fUSD/lending_fUSD_20241002
["ID","MTS","AMOUNT","RATE_DAILY","PERIOD"]
[339693357,1727869865802,-500.0,0.00022243,2]
[339693359,1727869865811,-500.0,0.00022243,2]
[339693361,1727869865821,-616.35,0.00022243,2]
[339693363,1727869865830,-505.81256857,0.00022243,2]
[339693365,1727869865840,-1407.55,0.00022243,2]
[339693367,1727869865849,-2264.57,0.00022243,2]
[339693369,1727869865859,-228.96497946,0.00022243,2]
[339693371,1727869865868,-1920.95,0.00022243,2]
[339693373,1727869865877,-500.72295147,0.00022243,2]
[339693375,1727869865887,-568.58,0.00022243,2]
[339693377,1727869865896,-1453.71,0.00022243,2]
[339693379,1727869865905,-500.0,0.00022243,2]
[339693381,1727869865917,-500.0,0.00022243,2]
[339693383,1727869865927,-150.0,0.00022243,2]
[339693385,1727869865937,-500.0,0.00022243,2]
[339693386,1727869865946,-1753.24,0.00022243,2]
[339693388,1727869865956,-750.98,0.00022243,2]
[339693390,1727869865966,-2203.62,0.00022243,2]
[339693392,1727869865976,-983.09,0.00022243,2]
[339693394,1727869865985,-659.66,0.00022243,2]
[339693396,1727869865997,-500.0,0.00022243,2]
[339693398,1727869866006,-931.83,0.00022243,2]
[339693400,1727869866016,-2897.78,0.00022243,2]
[339693401,1727869866026,-150.0,0.00022294,4]
[339693403,1727869866035,-150.0,0.00022306,4]
[339693405,1727869866045,-180.0,0.00022322,2]
[339693407,1727869866055,-150.0,0.00022366,4]
[339693409,1727869866064,-218.5747602,0.00022438,4]
[339693411,1727869866073,-222.08878969,0.00022438,4]
[339693413,1727869866083,-179.49229423,0.00022438,4]
[339693415,1727869866093,-154.44677563,0.00022438,4]
[339693417,1727869866103,-200.0,0.00022442,2]
[339693419,1727869866112,-2000.0,0.00022442,2]
[339693421,1727869866121,-200.0,0.00022442,2]
[339693423,1727869866131,-200.0,0.00022442,2]
[339693425,1727869866140,-2000.0,0.00022442,2]
[339693427,1727869866150,-500.0,0.00022464,2]
[339693429,1727869866159,-500.0,0.00022464,2]
[339693431,1727869866169,-500.0,0.00022465,2]
[339693433,1727869866179,-500.0,0.00022465,2]
[339693435,1727869866189,-500.0,0.00022465,2]
[339693437,1727869866199,-500.0,0.00022465,2]
[339693439,1727869866209,-501.85400422,0.00022465,2]
[339693441,1727869866220,-500.0,0.00022465,2]
[339693443,1727869866231,-500.0,0.00022465,2]
[339693444,1727869866240,-500.0,0.00022465,2]
[339693445,1727869866250,-500.0,0.00022465,2]
[339693446,1727869866260,-500.0,0.00022465,2]
[339693447,1727869866269,-500.0,0.00022465,2]
[339693448,1727869866281,-500.0,0.00022465,2]
[339693449,1727869866292,-500.0,0.00022465,2]
[339693450,1727869866304,-500.0,0.00022465,2]
[339693451,1727869866315,-1585.55,0.00022465,2]
[339693452,1727869866325,-188.53921826,0.00022465,2]
[339693453,1727869866335,-500.0,0.00022465,2]
[339693454,1727869866345,-668.91,0.00022465,2]
[339693455,1727869866354,-500.0,0.00022465,2]
[339693456,1727869866364,-551.97679216,0.00022465,2]
[339693457,1727869866374,-985.05,0.00022465,2]
[339693458,1727869866384,-500.0,0.00022465,2]
[339693459,1727869866394,-163.35694046,0.00022465,2]
[339693460,1727869866403,-1229.26,0.00022465,2]
[339693461,1727869866414,-500.0,0.00022465,2]
[339693462,1727869866424,-576.13113061,0.00022465,2]
[339693463,1727869866434,-500.0,0.00022465,2]
[339693464,1727869866445,-500.0,0.00022465,2]
[339693465,1727869866455,-500.0,0.00022465,2]
[339693466,1727869866467,-193.35466312,0.00022465,2]
[339693467,1727869866476,-712.89,0.00022465,2]
[339693468,1727869866487,-500.0,0.00022465,2]
[339693469,1727869866497,-500.0,0.00022465,2]
[339693470,1727869866507,-500.0,0.00022465,2]
[339693471,1727869866517,-500.0,0.00022465,2]
[339693472,1727869866526,-500.0,0.00022465,2]
[339693473,1727869866536,-2666.71,0.00022465,2]
[339693474,1727869866546,-500.0,0.00022465,2]
[339693475,1727869866556,-500.0,0.00022465,2]
[339693476,1727869866566,-500.0,0.00022465,2]
[339693477,1727869866575,-665.33,0.00022465,2]
[339693478,1727869866585,-229.03549053,0.00022465,2]
[339693479,1727869866595,-500.0,0.00022465,2]
[339693480,1727869866604,-1052.32,0.00022465,2]
[339693481,1727869866614,-500.0,0.00022465,2]
[339693482,1727869866624,-500.0,0.00022465,2]
[339693483,1727869866635,-500.0,0.00022465,2]
[339693484,1727869866644,-1327.79,0.00022465,2]
[339693485,1727869866654,-500.0,0.00022465,2]
[339693487,1727869866664,-884.71,0.00022465,2]
[339693489,1727869866674,-500.0,0.00022465,2]
[339693490,1727869866683,-500.0,0.00022465,2]
[339693492,1727869866692,-810.58,0.00022465,2]
[339693494,1727869866703,-500.0,0.00022465,2]
[339693496,1727869866712,-500.0,0.00022465,2]
[339693498,1727869866722,-500.0,0.00022465,2]
[339693500,1727869866731,-500.0,0.00022465,2]
[339693502,1727869866741,-500.0,0.00022465,2]
[339693504,1727869866751,-500.0,0.00022465,2]
[339693506,1727869866760,-500.0,0.00022465,2]
[339693508,1727869866770,-500.0,0.00022465,2]
[339693510,1727869866779,-500.0,0.00022465,2]
[339693512,1727869866789,-1859.63,0.00022465,2]
[339693514,1727869866798,-680.9,0.00022465,2]
[339693516,1727869866807,-500.0,0.00022465,2]
[339693518,1727869866817,-500.0,0.00022465,2]
[339693520,1727869866826,-812.04,0.00022465,2]
[339693522,1727869866835,-755.7,0.00022465,2]
[339693524,1727869866844,-445.96839681,0.00022465,2]
[339693526,1727869866853,-500.0,0.00022465,2]
[339693528,1727869866863,-500.0,0.00022465,2]
[339693531,1727869866874,-669.31,0.00022465,2]
[339693533,1727869866884,-500.0,0.00022465,2]
[339693535,1727869866894,-618.42,0.00022465,2]
[339693537,1727869866904,-500.0,0.00022465,2]
[339693539,1727869866914,-510.21,0.00022465,2]
[339693541,1727869866928,-364.42682463,0.00022465,2]
[339693543,1727869866938,-967.09,0.00022465,2]
[339693545,1727869866948,-646.61,0.00022465,2]
[339693547,1727869866958,-500.0,0.00022465,2]
[339693549,1727869866968,-1017.63,0.00022465,2]
[339693551,1727869866978,-1249.39,0.00022465,2]
[339693553,1727869866987,-1412.81,0.00022465,2]
[339693555,1727869866997,-500.0,0.00022465,2]
[339693557,1727869867008,-500.0,0.00022465,2]
[339693559,1727869867018,-500.0,0.00022465,2]
[339693561,1727869867027,-718.87,0.00022465,2]
[339693562,1727869867036,-500.0,0.00022465,2]
[339693564,1727869867046,-855.4,0.00022465,2]
[339693566,1727869867055,-500.0,0.00022465,2]
[339693568,1727869867065,-1157.52,0.00022465,2]
[339693570,1727869867074,-596.87961993,0.00022465,2]
[339693572,1727869867083,-500.0,0.00022465,2]
[339693574,1727869867093,-643.98,0.00022465,2]
[339693576,1727869867102,-500.0,0.00022465,2]
[339693578,1727869867112,-500.0,0.00022465,2]
[339693580,1727869867122,-500.0,0.00022465,2]
[339693582,1727869867132,-1588.3,0.00022465,2]
[339693584,1727869867140,-501.82313584,0.00022465,2]
[339693586,1727869867151,-500.0,0.00022465,2]
[339693588,1727869867161,-524.95,0.00022465,2]
[339693590,1727869867171,-500.0,0.00022465,2]
[339693592,1727869867181,-593.26,0.00022465,2]
[339693594,1727869867191,-779.27,0.00022465,2]
[339693596,1727869867200,-500.0,0.00022465,2]
[339693598,1727869867210,-500.0,0.00022465,2]
[339693600,1727869867219,-959.91,0.00022465,2]
[339693602,1727869867229,-500.0,0.00022465,2]
[339693604,1727869867238,-531.09246243,0.00022465,2]
[339693606,1727869867248,-500.0,0.00022465,2]
[339693608,1727869867258,-500.0,0.00022465,2]
[339693610,1727869867268,-500.0,0.00022465,2]
[339693612,1727869867278,-500.0,0.00022465,2]
[339693614,1727869867288,-767.3,0.00022465,2]
[339693616,1727869867299,-500.0,0.00022465,2]
[339693618,1727869867308,-500.0,0.00022465,2]
[339693620,1727869867318,-284.63,0.00022465,2]
[339693622,1727869867328,-500.0,0.00022465,2]
[339693624,1727869867337,-500.0,0.00022465,2]
[339693625,1727869867347,-500.0,0.00022465,2]
[339693627,1727869867356,-578.47,0.00022465,2]
[339693629,1727869867366,-254.87273428,0.00022465,2]
[339693630,1727869867376,-1184.81,0.00022465,2]
[339693631,1727869867385,-1390.14,0.00022465,2]
[339693632,1727869867397,-1545.38,0.00022465,2]
[339693633,1727869867406,-500.0,0.00022465,2]
[339693634,1727869867415,-1552.98,0.00022465,2]
[339693635,1727869867425,-500.0,0.00022465,2]
[339693636,1727869867435,-805.91,0.00022465,2]
[339693637,1727869867445,-500.0,0.00022465,2]
[339693638,1727869867455,-741.36,0.00022465,2]
[339693639,1727869867464,-755.85,0.00022465,2]
[339693640,1727869867476,-500.0,0.00022465,2]
[339693641,1727869867485,-500.0,0.00022465,2]
[339693642,1727869867495,-500.0,0.00022465,2]
[339693643,1727869867505,-500.0,0.00022465,2]
[339693645,1727869867514,-500.0,0.00022465,2]
[339693647,1727869867524,-500.0,0.00022465,2]
[339693649,1727869867534,-610.0,0.00022465,2]
[339693651,1727869867543,-500.0,0.00022465,2]
[339693652,1727869867552,-778.9,0.00022465,2]
[339693654,1727869867562,-1369.29,0.00022465,2]
[339693656,1727869867571,-801.0,0.00022465,2]
[339693658,1727869867580,-548.03,0.00022465,2]
[339693660,1727869867589,-500.0,0.00022465,2]
[339693662,1727869867599,-1420.73,0.00022465,2]
[339693664,1727869867608,-500.0,0.00022465,2]
[339693665,1727869867617,-771.62,0.00022465,2]
[339693667,1727869867627,-767.84,0.00022465,2]
[339693669,1727869867637,-500.0,0.00022465,2]
[339693671,1727869867646,-500.0,0.00022465,2]
[339693673,1727869867656,-500.0,0.00022465,2]
[339693675,1727869867665,-500.0,0.00022465,2]
[339693677,1727869867674,-500.0,0.00022465,2]
[339693678,1727869867683,-889.03,0.00022465,2]
[339693680,1727869867693,-503.64597503,0.00022465,2]
[339693682,1727869867702,-500.0,0.00022465,2]
[339693684,1727869867711,-500.0,0.00022465,2]
[339693686,1727869867723,-500.0,0.00022465,2]
[339693688,1727869867732,-641.09,0.00022465,2]
[339693690,1727869867741,-294.76214509,0.00022465,2]
[339693691,1727869867750,-500.0,0.00022465,2]
[339693693,1727869867759,-500.0,0.00022465,2]
[339693695,1727869867768,-551.81,0.00022465,2]
[339693697,1727869867777,-500.0,0.00022465,2]
[339693699,1727869867786,-244.33891087,0.00022465,2]
[339693701,1727869867795,-678.78,0.00022465,2]
[339693702,1727869867804,-500.0,0.00022465,2]
[339693704,1727869867814,-500.0,0.00022465,2]
[339693706,1727869867823,-1109.34,0.00022465,2]
[339693708,1727869867833,-500.0,0.00022465,2]
[339693710,1727869867841,-500.0,0.00022465,2]
[339693712,1727869867851,-500.0,0.00022465,2]
[339693713,1727869867860,-503.44875257,0.00022465,2]
[339693715,1727869867869,-500.0,0.00022465,2]
[339693717,1727869867878,-983.59,0.00022465,2]
[339693719,1727869867888,-1062.54,0.00022465,2]
[339693721,1727869867898,-1270.09,0.00022465,2]
[339693723,1727869867907,-1402.36,0.00022465,2]
[339693725,1727869867916,-820.49,0.00022465,2]
[339693727,1727869867928,-801.41,0.00022465,2]
[339693729,1727869867937,-713.08,0.00022465,2]
[339693731,1727869867946,-500.0,0.00022465,2]
[339693732,1727869867955,-678.56,0.00022465,2]
[339693734,1727869867968,-500.0,0.00022465,2]
[339693735,1727869867978,-500.0,0.00022465,2]
[339693736,1727869867988,-500.0,0.00022465,2]
[339693737,1727869867999,-500.0,0.00022465,2]
[339693738,1727869868008,-1293.47,0.00022465,2]
[339693739,1727869868018,-503.13100882,0.00022465,2]
[339693740,1727869868027,-902.63,0.00022465,5]
[339693741,1727869868037,-1343.58,0.00022465,2]
[339693742,1727869868047,-500.0,0.00022465,2]
[339693743,1727869868056,-500.0,0.00022465,2]
[339693744,1727869868066,-616.78,0.00022465,2]
[339693745,1727869868075,-814.56,0.00022465,2]
[339693746,1727869868085,-500.0,0.00022465,2]
[339693747,1727869868094,-239.74,0.00022465,2]
[339693748,1727869868103,-2604.16,0.00022465,2]
[339693749,1727869868113,-1424.77,0.00022465,2]
[339693750,1727869868122,-500.0,0.00022465,2]
[339693751,1727869868132,-500.0,0.00022465,2]
[339693752,1727869868141,-500.0,0.00022465,2]
[339693753,1727869868151,-942.76,0.00022465,2]
[339693754,1727869868160,-500.0,0.00022465,2]
[339693755,1727869868169,-770.38,0.00022465,2]
[339693756,1727869868178,-500.0,0.00022465,2]
[339693757,1727869868188,-500.0,0.00022465,2]
[339693758,1727869868198,-500.0,0.00022465,2]
[339693759,1727869868207,-535.73,0.00022465,2]
[339693760,1727869868216,-503.14936799,0.00022465,2]
[339693761,1727869868227,-500.0,0.00022465,2]
[339693762,1727869868238,-500.0,0.00022465,2]
[339693763,1727869868248,-500.0,0.00022465,2]
[339693764,1727869868258,-1056.78,0.00022465,2]
[339693765,1727869868268,-975.41,0.00022465,2]
[339693766,1727869868277,-500.0,0.00022465,2]
[339693767,1727869868286,-1210.32,0.00022465,2]
[339693768,1727869868296,-1078.55,0.00022465,2]
[339693769,1727869868305,-682.08,0.00022465,2]
[339693770,1727869868315,-500.0,0.00022465,2]
[339693771,1727869868325,-500.0,0.00022465,2]
[339693772,1727869868335,-500.0,0.00022465,2]
[339693773,1727869868345,-500.0,0.00022465,2]
[339693775,1727869868354,-1189.26,0.00022465,2]
[339693777,1727869868363,-2785.63,0.00022465,2]
[339693779,1727869868373,-1948.92,0.00022465,2]
[339693781,1727869868383,-858.38,0.00022465,2]
[339693783,1727869868393,-500.0,0.00022465,2]
[339693785,1727869868403,-941.68,0.00022465,2]
[339693787,1727869868413,-500.0,0.00022465,2]
[339693789,1727869868423,-670.24,0.00022465,2]
[339693791,1727869868433,-500.0,0.00022465,2]
[339693793,1727869868443,-594.79,0.00022465,2]
[339693795,1727869868452,-196.42541417,0.00022465,2]
[339693796,1727869868462,-500.0,0.00022465,2]
[339693798,1727869868474,-5341.96,0.00022465,2]
[339693800,1727869868484,-643.1,0.00022465,2]
[339693802,1727869868494,-500.0,0.00022465,2]
[339693804,1727869868505,-500.0,0.00022465,2]
[339693806,1727869868515,-2099.58,0.00022465,2]
[339693808,1727869868526,-500.0,0.00022465,2]
[339693810,1727869868535,-500.0,0.00022465,2]
[339693812,1727869868545,-500.0,0.00022465,2]
[339693814,1727869868555,-594.95892502,0.00022465,2]
[339693816,1727869868566,-1567.72,0.00022465,2]
[339693818,1727869868577,-500.0,0.00022465,2]
[339693820,1727869868586,-779.17,0.00022465,2]
[339693822,1727869868597,-500.0,0.00022465,2]
[339693824,1727869868608,-500.0,0.00022465,2]
[339693826,1727869868619,-1062.28,0.00022465,2]
[339693828,1727869868630,-500.0,0.00022465,2]
[339693830,1727869868640,-1060.35,0.00022465,2]
[339693832,1727869868649,-1203.86,0.00022465,2]
[339693834,1727869868660,-907.55,0.00022465,2]
[339693836,1727869868670,-500.0,0.00022465,2]
[339693838,1727869868681,-941.43,0.00022465,2]
[339693840,1727869868690,-500.0,0.00022465,2]
[339693842,1727869868700,-500.0,0.00022465,2]
[339693844,1727869868710,-500.0,0.00022465,2]
[339693846,1727869868722,-500.0,0.00022465,2]
[339693848,1727869868732,-500.0,0.00022465,2]
[339693850,1727869868741,-567.36,0.00022465,2]
[339693852,1727869868751,-1377.52,0.00022465,2]
[339693854,1727869868760,-1924.96,0.00022465,2]
[339693856,1727869868770,-500.0,0.00022465,2]
[339693858,1727869868780,-2570.66,0.00022465,2]
[339693860,1727869868790,-154.47730443,0.00022465,2]
[339693861,1727869868799,-504.18,0.00022465,2]
[339693863,1727869868809,-589.6564504,0.00022465,2]
[339693865,1727869868819,-500.0,0.00022465,2]
[339693868,1727869868829,-500.0,0.00022465,2]
[339693870,1727869868839,-1694.56,0.00022465,2]
[339693872,1727869868849,-535.92,0.00022465,2]
[339693873,1727869868858,-500.0,0.00022465,2]
[339693875,1727869868868,-1037.69,0.00022465,2]
[339693876,1727869868877,-500.0,0.00022465,2]
[339693877,1727869868888,-500.0,0.00022465,2]
[339693878,1727869869003,-1154.29,0.00022465,2]
[339693879,1727869869021,-500.0,0.00022465,2]
[339693880,1727869869032,-500.0,0.00022465,2]
[339693881,1727869869042,-500.0,0.00022465,2]
[339693882,1727869869051,-500.0,0.00022465,2]
[339693883,1727869869061,-1331.73,0.00022465,2]
[339693884,1727869869071,-5235.58,0.00022465,2]
[339693885,1727869869081,-500.0,0.00022465,2]
[339693886,1727869869091,-910.92,0.00022465,2]
[339693887,1727869869101,-500.0,0.00022465,2]
[339693888,1727869869111,-500.0,0.00022465,2]
[339693889,1727869869121,-3299.68,0.00022465,2]
[339693890,1727869869131,-506.6799875,0.00022465,2]
[339693891,1727869869141,-500.0,0.00022465,2]
[339693892,1727869869151,-2072.97,0.00022465,2]
[339693893,1727869869160,-500.0,0.00022465,2]
[339693894,1727869869170,-1375.53,0.00022465,2]
[339693895,1727869869180,-1395.77,0.00022465,2]
[339693896,1727869869190,-500.0,0.00022465,2]
[339693897,1727869869200,-500.0,0.00022465,2]
[339693898,1727869869210,-934.49,0.00022465,2]
[339693899,1727869869222,-594.23,0.00022465,2]
[339693900,1727869869231,-500.0,0.00022465,2]
[339693901,1727869869241,-500.0,0.00022465,2]
[339693902,1727869869251,-500.0,0.00022465,2]
[339693903,1727869869261,-717.11,0.00022465,2]
[339693904,1727869869270,-500.0,0.00022465,2]
[339693905,1727869869280,-500.0,0.00022465,2]
[339693906,1727869869289,-6239.89,0.00022465,2]
[339693907,1727869869299,-500.0,0.00022465,2]
[339693908,1727869869308,-657.08,0.00022465,2]
[339693909,1727869869317,-500.0,0.00022465,2]
[339693910,1727869869327,-2362.21,0.00022465,2]
[339693911,1727869869336,-500.0,0.00022465,2]
[339693912,1727869869345,-1282.02,0.00022465,2]
[339693913,1727869869355,-500.0,0.00022465,2]
[339693914,1727869869365,-621.95,0.00022465,2]
[339693915,1727869869375,-594.39,0.00022465,2]
[339693916,1727869869386,-500.0,0.00022465,2]
[339693917,1727869869396,-500.0,0.00022465,2]
[339693918,1727869869406,-500.0,0.00022465,2]
[339693919,1727869869415,-500.0,0.00022465,2]
[339693920,1727869869427,-654.11,0.00022465,2]
[339693921,1727869869437,-2484.06,0.00022465,2]
[339693922,1727869869446,-553.95,0.00022465,2]
[339693923,1727869869457,-500.39880227,0.00022465,2]
[339693924,1727869869469,-500.0,0.00022465,2]
[339693925,1727869869479,-500.0,0.00022465,2]
[339693926,1727869869489,-1100.5,0.00022465,2]
[339693927,1727869869499,-2044.12,0.00022465,2]
[339693928,1727869869508,-1595.01,0.00022465,2]
[339693929,1727869869518,-500.0,0.00022465,2]
[339693930,1727869869529,-2887.75,0.00022465,2]
[339693931,1727869869539,-500.0,0.00022465,2]
[339693932,1727869869549,-2169.69,0.00022465,2]
[339693933,1727869869559,-1549.67,0.00022465,2]
[339693934,1727869869569,-500.0,0.00022465,2]
[339693935,1727869869579,-2305.86,0.00022465,2]
[339693936,1727869869588,-500.0,0.00022465,2]
[339693937,1727869869599,-500.0,0.00022465,2]
[339693938,1727869869609,-4429.03,0.00022465,2]
[339693939,1727869869619,-500.0,0.00022465,2]
[339693940,1727869869629,-528.81356459,0.00022465,2]
[339693941,1727869869639,-500.0,0.00022465,2]
[339693942,1727869869648,-500.0,0.00022465,2]
[339693943,1727869869658,-500.0,0.00022465,2]
[339693944,1727869869667,-2507.39,0.00022465,2]
[339693945,1727869869677,-1324.08,0.00022465,2]
[339693946,1727869869686,-948.06,0.00022465,2]
[339693947,1727869869697,-1133.03,0.00022465,2]
[339693948,1727869869706,-500.0,0.00022465,2]
[339693949,1727869869715,-500.0,0.00022465,2]
[339693950,1727869869727,-500.0,0.00022465,2]
[339693951,1727869869737,-2644.67,0.00022465,2]
[339693952,1727869869746,-500.0,0.00022465,2]
[339693953,1727869869756,-1029.87,0.00022465,2]
[339693954,1727869869767,-693.45,0.00022465,2]
[339693955,1727869869777,-911.95,0.00022465,2]
[339693956,1727869869787,-500.0,0.00022465,2]
[339693957,1727869869798,-500.0,0.00022465,2]
[339693958,1727869869808,-500.0,0.00022465,2]
[339693959,1727869869818,-680.01,0.00022465,2]
[339693960,1727869869828,-2554.46,0.00022465,2]
[339693961,1727869869839,-500.0,0.00022465,2]
[339693962,1727869869849,-3104.41,0.00022465,2]
[339693963,1727869869859,-1531.89,0.00022465,2]
[339693964,1727869869869,-500.0,0.00022465,2]
[339693965,1727869869879,-854.9,0.00022465,2]
[339693966,1727869869890,-500.0,0.00022465,2]
[339693967,1727869869900,-500.0,0.00022465,2]
[339693968,1727869869909,-500.0,0.00022465,2]
[339693969,1727869869922,-914.75,0.00022465,2]
[339693970,1727869869932,-1482.48,0.00022465,2]
[339693971,1727869869943,-500.0,0.00022465,2]
[339693972,1727869869953,-2958.79,0.00022465,2]
[339693973,1727869869964,-500.0,0.00022465,2]
[339693974,1727869869975,-500.0,0.00022465,2]
[339693975,1727869869985,-769.4,0.00022465,2]
[339693976,1727869869995,-737.81,0.00022465,2]
[339693977,1727869870005,-920.12,0.00022465,2]
[339693978,1727869870014,-4214.73,0.00022465,2]
[339693979,1727869870024,-500.0,0.00022465,2]
[339693980,1727869870034,-3969.74,0.00022465,2]
[339693981,1727869870044,-500.0,0.00022465,2]
[339693982,1727869870054,-642.53,0.00022465,2]
[339693983,1727869870064,-4693.28,0.00022465,2]
[339693984,1727869870074,-1981.48,0.00022465,2]
[339693985,1727869870084,-500.0,0.00022465,2]
[339693986,1727869870094,-769.22,0.00022465,2]
[339693987,1727869870104,-500.0,0.00022465,2]
[339693988,1727869870113,-1333.72,0.00022465,2]
[339693989,1727869870123,-204.61401946,0.00022465,2]
[339693990,1727869870133,-971.65,0.00022465,2]
[339693991,1727869870142,-259.85363628,0.00022465,2]
[339693992,1727869870152,-273.78089904,0.00022465,2]
[339693993,1727869870162,-500.0,0.00022465,2]
[339693994,1727869870171,-4781.7,0.00022465,2]
[339693995,1727869870181,-1840.41,0.00022465,2]
[339693996,1727869870190,-3256.68,0.00022465,2]
[339693997,1727869870200,-500.0,0.00022465,2]
[339693998,1727869870210,-500.0,0.00022465,2]
[339693999,1727869870221,-949.52,0.00022465,2]
[339694000,1727869870232,-500.0,0.00022465,2]
[339694001,1727869870241,-1052.75,0.00022465,2]
[339694002,1727869870250,-500.0,0.00022465,2]
[339694003,1727869870260,-1139.3,0.00022465,2]
[339694004,1727869870269,-1499.88,0.00022465,2]
[339694005,1727869870279,-3896.36,0.00022465,2]
[339694006,1727869870288,-500.0,0.00022465,2]
[339694007,1727869870298,-837.15,0.00022465,2]
[339694008,1727869870308,-500.0,0.00022465,2]
[339694009,1727869870317,-500.0,0.00022465,2]
[339694010,1727869870327,-500.0,0.00022465,2]
[339694011,1727869870337,-500.0,0.00022465,2]
[339694012,1727869870347,-706.42,0.00022465,2]
[339694013,1727869870358,-1586.71,0.00022465,2]
[339694014,1727869870367,-500.0,0.00022465,2]
[339694015,1727869870377,-2633.91,0.00022465,2]
[339694016,1727869870387,-500.0,0.00022465,2]
[339694017,1727869870396,-1238.3,0.00022465,2]
[339694018,1727869870406,-625.64,0.00022465,2]
[339694019,1727869870415,-500.0,0.00022465,2]
[339694020,1727869870426,-1209.21,0.00022465,2]
[339694021,1727869870435,-1377.7,0.00022465,2]
[339694022,1727869870446,-1229.98,0.00022465,2]
[339694023,1727869870455,-1490.73,0.00022465,2]
[339694024,1727869870465,-500.0,0.00022465,2]
[339694025,1727869870475,-821.89,0.00022465,2]
[339694026,1727869870486,-500.0,0.00022465,2]
[339694027,1727869870496,-2367.9,0.00022465,2]
[339694028,1727869870506,-1174.03,0.00022465,2]
[339694029,1727869870516,-500.0,0.00022465,2]
[339694030,1727869870526,-500.0,0.00022465,2]
[339694031,1727869870536,-500.0,0.00022465,2]
[339694032,1727869870545,-500.0,0.00022465,2]
[339694033,1727869870556,-847.46,0.00022465,2]
[339694034,1727869870565,-500.0,0.00022465,2]
[339694035,1727869870575,-500.0,0.00022465,2]
[339694036,1727869870585,-500.0,0.00022465,2]
[339694037,1727869870595,-536.04,0.00022465,2]
[339694038,1727869870604,-545.49,0.00022465,2]
[339694039,1727869870614,-500.0,0.00022465,2]
[339694040,1727869870624,-718.29,0.00022465,2]
[339694041,1727869870634,-1000.0,0.00022465,2]
[339694042,1727869870643,-669.98,0.00022465,2]
[339694043,1727869870652,-500.0,0.00022465,2]
[339694044,1727869870662,-500.0,0.00022465,2]
[339694045,1727869870671,-596.18,0.00022465,2]
[339694046,1727869870681,-500.0,0.00022465,2]
[339694047,1727869870692,-500.0,0.00022465,2]
[339694048,1727869870702,-731.9,0.00022465,2]
[339694049,1727869870711,-1746.5,0.00022465,2]
[339694050,1727869870721,-500.0,0.00022465,2]
[339694051,1727869870730,-1675.75,0.00022465,2]
[339694052,1727869870739,-2492.76,0.00022465,2]
[339694053,1727869870748,-1021.85,0.00022465,2]
[339694054,1727869870758,-2147.45,0.00022465,2]
[339694055,1727869870768,-666.4,0.00022465,2]
[339694056,1727869870777,-1805.45,0.00022465,2]
[339694057,1727869870786,-574.56573023,0.00022465,2]
[339694058,1727869870797,-500.0,0.00022465,2]
[339694059,1727869870806,-767.65,0.00022465,2]
[339694060,1727869870815,-1399.04,0.00022465,2]
[339694061,1727869870824,-646.65638163,0.00022465,2]